Cogmind - Beta 12 @@@ ROGUE MODE // 2023.11.15 @ 19:46:35 Player: epb Result: Destroyed self with Grenade Launcher Performance ------------- Evolutions (0) 0 Regions Visited (1) 200 Robots Destroyed (11) 55 Value Destroyed (267) 267 Prototype IDs (0) 0 Alien Tech Used (0) 0 Bonus (0) 0 TOTAL SCORE: 522 Bonus ------- None Cogmind --------- Core Integrity 0/250 Matter 251/300 Energy 100/100 System Corruption 0% Temperature Hot (285) Movement Core (150) Ox2 Location -10/Materials Parts ------- > --- POWER (1) -------- (None) > --- PROPULSION (2) --- (None) > --- UTILITY (2) ------ Small Storage Unit > --- WEAPON (2) ------- Grenade Launcher > --- INVENTORY (8) ---- Light Ion Engine Aluminum Leg Aluminum Leg EM Pulse Gun Grenade Launcher Datajack Peak State ------------ > --- POWER ------------ Light Ion Engine > --- PROPULSION ------- Aluminum Leg Aluminum Leg > --- UTILITY ---------- Small Storage Unit > --- WEAPON ----------- Medium Laser Light Assault Rifle > --- INVENTORY -------- (None) [Rating: 6] Favorites ----------- Power Light Ion Engine Engine Light Ion Engine Propulsion Aluminum Leg Leg Aluminum Leg Utility Small Storage Unit Storage Small Storage Unit Weapon Light Assault Rifle Energy Gun Medium Laser Ballistic Gun Light Assault Rifle Launcher Grenade Launcher Build | -11 -10 ------- Run | Jun Mat Slots Evolved . | . . Power . | . . Propulsion . | . . Utility . | . . Weapon . | . . Parts Attached 8 | 6 2 Power 1 | 1 . Engine 1 | 1 . Core . | . . Reactor . | . . Propulsion 2 | 2 . Treads . | . . Leg 2 | 2 . Wheel . | . . Hover . | . . Flight . | . . Utility 1 | 1 . Device . | . . Storage 1 | 1 . Processor . | . . Hackware . | . . Protection . | . . Artifact . | . . Weapon 4 | 2 2 Energy Gun 1 | 1 . Energy Cannon . | . . Ballistic Gun 1 | 1 . Ballistic Cannon . | . . Launcher 2 | . 2 Special Weapon . | . . Impact Weapon . | . . Slashing Weapon . | . . Piercing Weapon . | . . Special Melee Weapon . | . . Unidentified Prototypes . | . . Parts Lost 5 | . 5 Power 1 | . 1 Propulsion 2 | . 2 Utility . | . . Weapon 2 | . 2 Highest Loss Streak 5 | . 5 To Critical Strikes . | . . Average Slot Usage (%) 83 | . 83 Engine 13 | . 13 Leg 27 | . 27 Storage 14 | . 14 Energy Gun 13 | . 13 Ballistic Gun 14 | . 14 Naked Turns . | . . Heaviest Build 11 | 11 11 Greatest Support 20 | 20 20 Greatest Overweight (x) . | . . Average Overweight (x) . | . . Largest Inventory Capacity 8 | 8 8 Average Capacity 7 | 7 8 Most Carried 7 | 1 7 Average Carried 4 | . 4 Final Capacity 8 | 8 8 Final Carried 6 | 1 6 Class Distribution -------------------- 100% | Mutant Dominant Class ---------------- Mutant | -10/Materials Resources | -11 -10 ----------- Run | Jun Mat Matter Collected 268 | 159 109 Remotely . | . . Salvage Created 316 | . 316 Parts 23 | . 23 Haulers Intercepted . | . . Recyclers Shooed . | . . Parts Field Recycled . | . . Retrieved Matter . | . . Parts Self-Destructed . | . . Prevented . | . . Kills | -11 -10 ------- Run | Jun Mat Combat Hostiles Destroyed 8 | . 8 Guns 3 | . 3 AOE 5 | . 5 Classes Destroyed 5 | . 5 Worker 1 | . 1 Recycler 1 | . 1 Mechanic 1 | . 1 Swarmer 2 | . 2 Grunt 6 | . 6 Best Kill Streak 9 | . 9 Combat Bots Only 5 | . 5 Max Kills in Single Turn 3 | . 3 Gunslinging . | . . Exploded 2 | . 2 Melee . | . . Uniques/NPCs Destroyed . | . . Combat | -11 -10 -------- Run | Jun Mat Damage Taken 812 | . 812 Core 257 | . 257 Absorbed by Shields . | . . Core Remaining (%) 100 | 100 . Volleys Fired 24 | . 24 Largest 2 | . 2 Hottest 70 | . 70 Shots Fired 45 | . 45 Gun 41 | . 41 Cannon . | . . Launcher 4 | . 4 Special . | . . Kinetic 22 | . 22 Thermal 19 | . 19 Explosive 4 | . 4 Electromagnetic . | . . Robot Hit Streak 8 | . 8 Robot Miss Streak 2 | . 2 Penetration Max . | . . Secondary Targets . | . . Shots Hit Robots 33 | . 33 Core Hits 19 | . 19 Critical Kills . | . . Critical Parts Destroyed . | . . Critical Strikes . | . . Melee Attacks . | . . Impact . | . . Slashing . | . . Piercing . | . . Sneak Attacks . | . . Combat Hostiles . | . . Follow-up Attacks . | . . Damage Inflicted 723 | . 723 Guns 330 | . 330 Cannons . | . . Explosions 393 | . 393 Melee . | . . Ramming . | . . Kinetic 131 | . 131 Thermal 199 | . 199 Explosive 393 | . 393 Electromagnetic . | . . Impact . | . . Slashing . | . . Piercing . | . . Highest Corruption . | . . Average Corruption . | . . Corruption Purged . | . . Corruption Blocked . | . . Overload Shots . | . . Overflow Damage 39 | . 39 Projectiles . | . . Explosions 39 | . 39 Melee . | . . Knockbacks . | . . Impact . | . . Kinetic . | . . Secondary . | . . Self-Inflicted Damage 131 | . 131 Shots 4 | . 4 Rammed . | . . Targets Rammed . | . . Kicked . | . . Crushed . | . . Highest Temperature 340 | . 340 Average Temperature 141 | . 141 Received Heat Transfer 309 | . 309 Effects 1 | . 1 Short Circuit 1 | . 1 Siege Activations . | . . Robots Corrupted . | . . Combat Hostiles . | . . Parts Fried . | . . Impact Corruptions . | . . Robots Melted . | . . Combat Hostiles . | . . Parts Melted . | . . Heat Transferred 592 | . 592 Parts Sabotaged . | . . Parts Stolen . | . . Parts Stripped . | . . Power Chain Reactions . | . . Missiles Intercepted . | . . Alert | -11 -10 ------- Run | Jun Mat Peak Influence 194 | . 194 Initial . | . . Average 34 | . 40 Maximum Alert Level . | . . Low Security (%) 100 | 100 100 Level 1 . | . . Level 2 . | . . Level 3 . | . . Level 4 . | . . Level 5 . | . . High Security . | . . Max Security . | . . Squads Dispatched 2 | . 2 Investigation 1 | . 1 Extermination . | . . Reinforcement 1 | . 1 Assault . | . . Garrison . | . . Intercept . | . . Searches Triggered . | . . Construction Impeded . | . . Haulers Reinforced . | . . Active Scanning Responses . | . . Cargo Convoy Interrupts . | . . Stealth | -11 -10 --------- Run | Jun Mat Distress Signals 1 | . 1 Communications Jammed . | . . Distress Signals . | . . Times Spotted 13 | . 13 Peak Tracking Total 7 | . 7 Tactical Retreats . | . . Traps | -11 -10 ------- Run | Jun Mat Traps Triggered 1 | . 1 Indirectly . | . . Trap Hack Attempts . | . . Triggered . | . . Disarmed . | . . Reprogrammed . | . . Reused . | . . Traps Extracted . | . . Installed . | . . Triggered . | . . Machines | -11 -10 ---------- Run | Jun Mat Machines Disabled 1 | . 1 Max in Single Turn 1 | . 1 Machines Repaired . | . . Machines Sabotaged . | . . Overloaded Fab Kills . | . . Hacking | -11 -10 --------- Run | Jun Mat Machines Accessed 2 | . 2 Terminals 2 | . 2 Fabricators . | . . Repair Stations . | . . Recycling Units . | . . Scanalyzers . | . . Garrison Access . | . . Total Hacks 4 | . 4 Successful 1 | . 1 Failed 3 | . 3 Catastrophic . | . . Database Lockouts . | . . Manual . | . . Terminals 4 | . 4 Fabricators . | . . Repair Stations . | . . Recycling Units . | . . Scanalyzers . | . . Garrison Access . | . . Terminal Hacks 1 | . 1 Record 1 | . 1 Fabricator Hacks . | . . Repair Station Hacks . | . . Recycling Unit Hacks . | . . Scanalyzer . | . . Garrison Access Hacks . | . . Unauthorized Hacks . | . . Terminals . | . . Fabricators . | . . Repair Stations . | . . Recycling Units . | . . Scanalyzers . | . . Garrison Access . | . . Data Cores Recovered . | . . Used . | . . Hacking Detections 2 | . 2 Full Trace Events . | . . Feedback Events . | . . Feedback Blocked . | . . Robot Schematics Acquired . | . . Robots Built . | . . Authchips . | . . Time . | . . Total Robot Build Rating . | . . Part Schematics Acquired . | . . Parts Built . | . . Authchips . | . . Time . | . . Total Part Build Rating . | . . Parts Repaired . | . . Time . | . . Parts Recycled . | . . Recycled Matter . | . . Retrieved Matter . | . . Retrieved Components . | . . Parts Scanalyzed . | . . Part Schematics Acquired . | . . Parts Damaged . | . . Bothacking | -11 -10 ------------ Run | Jun Mat Used RIF Installer . | . . Robots Hacked . | . . Non-combat . | . . Combat . | . . Robot Hacks Applied . | . . Relay Couplers Released . | . . Fabnet Peak Effective % . | . . Robots Rewired . | . . Allies Hacked . | . . Hacks Repelled . | . . Allies | -11 -10 -------- Run | Jun Mat Total Allies . | . . Largest Group . | . . Highest-Rated Group . | . . Highest-Rated Ally . | . . Total Orders . | . . Ally Attacks . | . . Total Damage . | . . Kills . | . . Allies Corrupted . | . . Allies Melted . | . . Intel | -11 -10 ------- Run | Jun Mat Robot Analysis Total . | . . Derelict Logs Recovered . | . . Drone Launches . | . . Drone Recoveries . | . . Exploration | -11 -10 ------------- Run | Jun Mat Turns Passed 455 | 61 394 Spaces Moved 268 | 47 221 Core 6 | 6 . Treads . | . . Legs 262 | 41 221 Wheels . | . . Hover . | . . Flight . | . . Fastest Speed 50 | 50 120 Average Speed 118 | 111 120 Slowest Speed 120 | 120 120 Overloaded Moves . | . . Propulsion Burnouts . | . . Robots Hopped . | . . Cave-ins Triggered . | . . Exploration Rate (%) 19 | 4 34 Regions Visited 1 Branch Regions . Pre-discovered Areas . | . . Known Exits Taken . | . . Unknown Exits Taken 1 | 1 . Scrap Searched . | . . Spaces Dug . | . . Terrain Destroyed 13 | . 13 Melee . | . . Projectile . | . . AOE 13 | . 13 Terrain Rammed . | . . Walls Destroyed . | . . Machines Disabled . | . . Actions | -11 -10 --------- Run | Jun Mat Total 363 | 53 310 Wait 55 | . 55 Move 267 | 46 221 Hop . | . . Pick Up 8 | 1 7 Fast Attach 6 | 6 . Attach 1 | . 1 Detach . | . . Swap 1 | . 1 Drop 1 | . 1 Fire 24 | . 24 Melee . | . . Ram . | . . Kick . | . . Crush . | . . Escape Stasis . | . . Rewire . | . . Trap . | . . Miscellaneous . | . . Route ------- -11/Junkyard -10/Materials (discovered 1 exit: [*Min]) History --------- Turn | Location | Event 6 | -11/Junkyard | Discovered new exit (range 15) 62 | -11/Junkyard | Entered Materials 310 | -10/Materials | Build established: Mutant 446 | -10/Materials | Core integrity fell below 50% 446 | -10/Materials | Discovered new exit (range 12) 451 | -10/Materials | Core integrity fell below 20% 456 | -10/Materials | Destroyed self with Grenade Launcher Last Messages --------------- 00448_ Grenade Launcher broken. 00448_ Overheating: Short circuit. 00449_ G-34 Mercenary heat short circuits Ion Engine. 00449_ U-05 Engineer builds a Wall. 00450_ S-10 Pest destroyed. 00450_ M-13 Machinist destroyed. 00450_ Destroyed Lgt. Ion Engine. 00450_ S-10 Pest destroyed. 00450_ G-47 Trooper destroyed. 00452_ U-05 Engineer builds a Door. 00453_ U-05 Engineer lays Concrete. 00453_ K-01 Serf collects debris. 00453_ Lgt. Assault Rifle destroyed. 00453_ Destroyed Lgt. Assault Rifle. 00453_ Destroyed Ion Engine. 00453_ G-34 Mercenary destroyed. 00454_ The unstable cave ceiling collapses. 00455_ G-34 Mercenary heat short circuits Aluminum Leg. 00455_ U-05 Engineer lays Concrete. 00456_ G-34 Mercenary destroyed. Map ----- +----------------------------------------------------+ | ?????????????????????????????????????????????????? | | ?????????????????????????????????????????????????? | | ?????????????????????????????????????????????????? | | ?????????????????????????????????????????????????? | | ?????????????????????????????????????????????????? | | ?????????????????????????????????????????????????? | | ?????????????????????????????????????????????????? | | ?????????????????????????????????????????????????? | | ?????????????????????????????????????????????????? | | ?????????????????????????????????????????????????? | | ?????????????????????????????????????????????????? | | ?????????????????????????????????????????????????? | | ?????????????????????????????????????????????????? | | ?????????????????????????????????????????????????? | | ?????????????????????????????????????????????????? | | ?????????????????????????????????????????????????? | | ???????????????????#?#?#####?????????????????????? | | ???????????????????# #?????????????????????? | | ???????????????????# " #?/#????????????????? | | ???????????????????# """ ## #???######??????? | | ???????????????????# """[ ## ### ##+#### | | ???????????????????# """u%#u | | ???????????????????# " *=+%= < | | ???????????????????# " [ != ?? ? | | ???????????????????# =% #???????# #?/## | | ???????????????????# "" @ #???????# # | | ???????????????????# "*% %! #???????# # | | ???????????????????# =! % k ######### + | | ???????????????????#### # "T | | ????????????###+??????## # "" | | ????????????# ###### ### #? | | ????????????# k ##### | | ????????????# T | | ????????????# u | | ????????????# #######+#######+######## | | ????????????#####?????# # #??# | | ??????????????????????# # """ T #??# ### | | ??????????????????????# """ # """ #??## #### | | ??????????????????????# """ # """ #???# # "" | | ??????????????????????# """ # #???# + "" | | ??????????????????????# # """ #???# # "" | | ??????????????????????######## """ #???# # | | ?????????????????????????????# """ #???# # | | ?????????????????????????????# #???# # | | ????????????????????????????????#######???# #% | | ??????????????????????????????????????????# #### | | ?????????????????????????????????????????## ##?? | | ?????????????????????????????????????????# #?? | | ?????????????????????????????????????????# ### | | ?????????????????????????????????????????#! | +----------------------------------------------------+ Best States ------------- Heat Dissipation 25 Energy Generation 10 Energy Capacity 125 Matter Stores 300 Matter Capacity 300 Sight Range 16 Terrain Scan Density 10 Evasion (%) 55 Item Schematics ----------------- None Robot Schematics ------------------ None Fabricated ------------ Nothing Alien Tech Used ----------------- None Achievements -------------- None Challenges ------------ None Game ------ Seed FocalChipDissipator Manual? 0 Play Time 00:06:46 Cumulative 13.4 hours Start 2023.11.15 @ 19:42:42 End 2023.11.15 @ 19:46:35 Sessions 1 Manual Loads 0 Difficulty Rogue Special Mode None Game No. 35 Rogue 35 Adventurer 0 Explorer 0 Win Type - Total 0 Types 0/0/0/0/0/0/0/0/0 Lore% 9 Gallery% 22 Achievement% 16 Wizard Run 0 Options --------- ASCII 0 Keyboard 0 Movement Vi Keybinds 0 Fullscreen 2 Font 14/TerminusBold Map View 72x54 Tactical HUD 1 Map Filters NONE Filters NONE Steam X RUN: a0da0540-53da-411e-8dfd-261e265e14be